Workbook

Sheet Datenblatt pro Kind
A1: Betreuungsgutscheine - Provisorischer Rechner
A3: Angaben Erziehungsberechtigte
A5: Name der 1. Person | D5: Name der 2. Person
A7: Wohnsitz in Münchenstein | B7: bitte wählen | D7: Wohnsitz in Münchenstein | F7: bitte wählen
A9: Adresse | D9: 2. Person Kindvater/Mutter
A11: PLZ / Ort
A13: Antrag vollständig | D13: Ja | F13: zurückgeschickt am:
D15: nein | F15: Grund:
A17: Angaben zum Kind
A19: Name des Kindes | D19: Betreuungseinrichtung
A21: Geburtsdatum | D21: Betreuungsbeginn
A24: Erwerbspensum
B26: 1. Person | D26: 2. Person | F26: Total Pensum | H26: anspruchsberechtigtes Pensum
A28: Alleinerziehend | F28: =B28 -> 0% | H28: =F28 -> 0%
A29: zwei Erziehungsberechtigte / feste Lebensgemeinschaft
F30: =B30+D30 -> 0% | H30: =IF(F30=0%,0,F30-100%) -> 0%
H32: =H28+H30 -> 0%
A34: massgebendes Einkommen
A36: Steuerbares Einkommen (Ziff 790) | D36: 0 | F36: Einkäufe 2. Säule 2 (Ziff 600+605) | I36: 0
A38: Steuerbares Vermögen (Ziff 899) | D38: 0 | F38: Einkäufe 3. Säule (Ziff 610+615) | I38: 0
A40: Anrechenbarer Vermögensanteil | D40: =IF(D41<0,"0",D41) -> 0 | F40: Liegenschaftsunterhalt (Ziff 415+420+460+470) | I40: 0
D41: =(D38-100000)/10 -> CHF -10,000
A43: Kinderabzug (ab dem zweiten Kind CHF 6'500 pro Kind) | D43: 0
A45: Massgebendes Einkommen Betreuungsgutscheine | D45: =D36+D40+I36+I38+I40-D43 -> 0
A47: Wird die Familie quellenbesteuert? | D47: bitte wählen | F47: =IF(D47="Ja","Hinweis: Wenn quellenbesteuert, Bruttoeinkommen minus 25 % bei Feld Steuerbares Einkommen eintragen","") -> 
A50: weitere finanzielle Angaben
A52: finanzielle Beteiliung durch Arbeitgeber monatlich: | D52: 0
A54: Bezieht die Familie wirtschaftliche Sozialhilfe? | D54: bitte wählen | F54: =IF(D54="Ja","Hinweis: Die Auszahlung erfolgt eventuell via Sozialamt","") -> 
A56: Betreuungsform
A58: Alter des Kindes | B58: bitte wählen
A60: Kindertagesstätte
B62: Vollkostentarif pro Tag | D62: Anzahl betreute Tage pro Woche | F62: Betreuungsgutschein pro Tag | H62: Kostenbeteiligung Eltern pro Tag | J62: Betreuungsgutschein pro Monat
A64: Kinder unter 18 Monaten | B64: 0 | D64: 0.0 | F64: =IF(B66<0,0,B66) -> 0 | H64: =IF(ISBLANK(D64),"",IF(B64-F66<=Parameter!D55,Parameter!D55,B64-F66)) -> CHF 20.00 | J64: =IF(ISBLANK(D64),"",ROUND(J66/5,2)*5) -> 0
J65: =IF(D64/5*100%>$H$32,"Hinweis: Das maximal unterstützte Pensum liegt bei "&($H$32*100)&"%. Die Kitabetreuung wird an maximal "&($H$32*5)&" Wochentag/en unterstützt.","") -> 
B66: =IF(ISBLANK(D64),"",IF(OR(F66>=B64,F66>B64-H64),B64-H64,F66)) -> CHF -20.00 | F66: =IF(ISBLANK(D64),"",VLOOKUP($D$45,Parameter!$A$35:$M$47,4,1)) -> CHF 105.00 | J66: =IF(D64/5*100%<=$H$32,F64*(D64/5*100)*240/(100*12),($H$32*F64*240)/12) -> 0.00
J67: =IF(J64="",0,J64) -> 0
B68: =B64*240/12/5*D64 -> 0 | H68: =Parameter!D55*240/12/5*D64 -> 0 | J68: =B68-H68-J67 -> 0
A70: Kinder über 18 Monaten | B70: 0 | D70: 0.0 | F70: =IF(B72<0,0,B72) -> 0 | H70: =IF(ISBLANK(D70),"",IF(B70-F72<=Parameter!E55,Parameter!E55,B70-F72)) -> CHF 20.00 | J70: =IF(ISBLANK(D70),"",ROUND(J72/5,2)*5) -> 0
J71: =IF(D70/5*100%>$H$32,"Hinweis: Das maximal unterstützte Pensum liegt bei "&($H$32*100)&"%. Die Kitabetreuung wird an maximal "&($H$32*5)&" Wochentag/en unterstützt.","") -> 
B72: =IF(ISBLANK(D70),"",IF(OR(F72>=B70,F72>B70-H70),B70-H70,F72)) -> CHF -20.00 | F72: =IF(ISBLANK(D70),"",VLOOKUP($D$45,Parameter!$A$35:$M$47,5,1)) -> CHF 95.00 | J72: =IF(D70/5*100%<=$H$32,F70*(D70/5*100)*240/(100*12),($H$32*F70*240)/12) -> 0.00
J73: =IF(J70="",0,J70) -> 0
B74: =B70*240/12/5*D70 -> 0 | H74: =Parameter!E55*240/12/5*D70 -> 0 | J74: =B74-H74-J73 -> 0
A76: Tagesfamilien
B78: Vollkostentarif pro Stunde | D78: Anzahl betreute Stunden pro Woche | F78: Betreuungsgutschein pro Stunde | H78: Kostenbeteiligung Eltern pro Stunde | J78: Betreuungsgutschein pro Monat
A80: Kinder unter 18 Monaten | B80: 0 | D80: 0.0 | F80: =IF(B82<0,0,B82) -> 0 | H80: =IF(ISBLANK(D80),"",IF(B80-F82<=Parameter!F54,Parameter!F54,B80-F82)) -> CHF 2.00 | J80: =IF(ISBLANK(D80),"",ROUND(J82/5,2)*5) -> 0
J81: =IF(D80*4*100%/200>$H$32,"Hinweis: Das maximal unterstützte Pensum liegt bei "&($H$32*100)&"%. Es werden maximal "&($H$32*50)&" Stunden pro Woche unterstützt.","") -> 
B82: =IF(ISBLANK(D80),"",IF(OR(F82>=B80,F82>B80-H80),B80-H80,F82)) -> CHF -2.00 | F82: =IF(ISBLANK(D80),"",VLOOKUP($D$45,Parameter!$A$35:$M$47,6,1)) -> CHF 10.50 | J82: =IF(D80*100%/50<=$H$32,F80*D80*48/12,(F80*($H$32*50/100%)*48)/12) -> 0.00
J83: =IF(J80="",0,J80) -> 0
B84: =B80*240/12/5*D80 -> 0 | H84: =Parameter!F54*240/12/5*D80 -> 0 | J84: =B84-H84-J83 -> 0
A86: Kinder über 18 Monaten | B86: 0 | D86: 0.0 | F86: =IF(B88<0,0,B88) -> 0 | H86: =IF(ISBLANK(D86),"",IF(B86-F88<=Parameter!G54,Parameter!G54,B86-F88)) -> CHF 2.00 | J86: =IF(ISBLANK(D86),"",ROUND(J88/5,2)*5) -> 0
J87: =IF(D86*4*100%/200>$H$32,"Hinweis: Das maximal unterstützte Pensum liegt bei "&($H$32*100)&"%. Es werden maximal "&($H$32*50)&" Stunden pro Woche unterstützt.","") -> 
B88: =IF(ISBLANK(D86),"",IF(OR(F88>=B86,F88>B86-H86),B86-H86,F88)) -> CHF -2.00 | F88: =IF(ISBLANK(D86),"",VLOOKUP($D$45,Parameter!$A$35:$M$47,7,1)) -> CHF 9.50 | J88: =IF(D86*100%/50<=$H$32,F86*D86*48/12,(F86*($H$32*50/100%)*48)/12) -> 0.00
J89: =IF(J86="",0,J86) -> 0
B90: =B86*240/12/5*D86 -> 0 | H90: =Parameter!F61*240/12/5*D86 -> 0 | J90: =B90-H90-J89 -> 0
A93: Tagesstrukturen
B95: Vollkostentarif pro Modul | D95: Anzahl besuchte Module pro Woche | F95: Betreuungsgutschein pro Modul | H95: Kostenbeteiligung Eltern pro Modul | J95: Betreuungsgutschein pro Monat
A97: Frühmorgen | F97: =IF(B99<0,0,B99) ->  | H97: =IF(ISBLANK(D97),"",IF(B97-F99<=Parameter!H55,Parameter!H55,B97-F99)) ->  | J97: =IF(ISBLANK(D97),"",ROUND(J99/5,2)*5) -> 
J98: =IF(D97/5*100%>$H$32,"Hinweis: Das maximal unterstützte Pensum liegt bei "&($H$32*100)&"%. Das Frühmorgenmodul wird an maximal "&($H$32*5)&" Wochentag/en unterstützt.","") -> 
B99: =IF(ISBLANK(D97),"",IF(OR(F99>=B97,F99>B97-H97),B97-H97,F99)) ->  | F99: =IF(ISBLANK(D97),"",VLOOKUP($D$45,Parameter!$A$35:$M$47,8,1)) ->  | J99: =IF(D97/5*100%<=$H$32,F97*(D97/5*100)*190/(100*12),($H$32*F97*190)/12) -> 
J100: =IF(J97="",0,J97) -> 0
B101: =B97*190/12/5*D97 -> 0 | H101: =Parameter!H55*190/12/5*D97 -> 0 | J101: =B101-H101-J100 -> 0
A103: Mittagstisch (ohne Essen) | B103: 0 | D103: 0.0 | F103: =IF(B105<0,0,B105) -> 0 | H103: =IF(ISBLANK(D103),"",IF(B103-F105<=Parameter!I55,Parameter!I55,B103-F105)) -> CHF 3.00 | J103: =IF(ISBLANK(D103),"",ROUND(J105/5,2)*5) -> 0
J104: =IF(D103/5*100%>$H$32,"Hinweis: Das maximal unterstützte Pensum liegt bei "&($H$32*100)&"%. Das Mittagsmodul wird an maximal "&($H$32*5)&" Wochentag/en unterstützt.","") -> 
B105: =IF(ISBLANK(D103),"",IF(OR(F105>=B103,F105>B103-H103),B103-H103,F105)) -> CHF -3.00 | F105: =IF(ISBLANK(D103),"",VLOOKUP($D$45,Parameter!$A$35:$M$47,9,1)) -> CHF 14.25 | J105: =IF(D103/5*100%<=$H$32,F103*(D103/5*100)*190/(100*12),($H$32*F103*190)/12) -> 0.00
J106: =IF(J103="",0,J103) -> 0
B107: =B103*190/12/5*D103 -> 0 | H107: =Parameter!I55*190/12/5*D103 -> 0 | J107: =B107-H107-J106 -> 0
A109: Nachmittag I 13.30 bis 15.30 | B109: 0 | D109: 0.0 | F109: =IF(B111<0,0,B111) -> 0 | H109: =IF(ISBLANK(D109),"",IF(B109-F111<=Parameter!J55,Parameter!J55,B109-F111)) -> CHF 4.00 | J109: =IF(ISBLANK(D109),"",ROUND(J111/5,2)*5) -> 0
J110: =IF(D109/5*100%>$H$32,"Hinweis: Das maximal unterstützte Pensum liegt bei "&($H$32*100)&"%. Es werden Nachmittagsmodule an maximal "&($H$32*5)&" Wochentag/en unterstützt.","") -> 
B111: =IF(ISBLANK(D109),"",IF(OR(F111>=B109,F111>B109-H109),B109-H109,F111)) -> CHF -4.00 | F111: =IF(ISBLANK(D109),"",VLOOKUP($D$45,Parameter!$A$35:$M$47,10,1)) -> CHF 19.00 | J111: =IF(D109/5*100%<=$H$32,F109*(D109/5*100)*190/(100*12),($H$32*F109*190)/12) -> 0.00
J112: =IF(J109="",0,J109) -> 0
B113: =B109*190/12/5*D109 -> 0 | H113: =Parameter!J55*190/12/5*D109 -> 0 | J113: =B113-H113-J112 -> 0
A115: Nachmittag II 15.30 bis 18.00 | B115: 0 | D115: 0.0 | F115: =IF(B117<0,0,B117) -> 0 | H115: =IF(ISBLANK(D115),"",IF(B115-F117<=Parameter!K55,Parameter!K55,B115-F117)) -> CHF 5.00 | J115: =IF(ISBLANK(D115),"",ROUND(J117/5,2)*5) -> 0
J116: =IF(D115/5*100%>$H$32,"Hinweis: Das maximal unterstützte Pensum liegt bei "&($H$32*100)&"%. Es werden Nachmittagsmodule an maximal "&($H$32*5)&" Wochentag/en unterstützt.","") -> 
B117: =IF(ISBLANK(D115),"",IF(OR(F117>=B115,F117>B115-H115),B115-H115,F117)) -> CHF -5.00 | F117: =IF(ISBLANK(D115),"",VLOOKUP($D$45,Parameter!$A$35:$M$47,11,1)) -> CHF 23.75 | J117: =IF(D115/5*100%<=$H$32,F115*(D115/5*100)*190/(100*12),($H$32*F115*190)/12) -> 0.00
J118: =IF(J115="",0,J115) -> 0
B119: =B115*190/12/5*D115 -> 0 | H119: =Parameter!K55*190/12/5*D115 -> 0 | J119: =B119-H119-J118 -> 0
A121: Ferienbetreuung | D121: =D109+D115 -> 0.0
B123: Vollkostentarif pro Halbtag | D123: Anzahl betreute Tage pro Jahr | F123: Betreuungsgutschein pro Tag | H123: Kostenbeteiligung Eltern pro Tag | J123: Betreuungsgutscheine pro Jahr
B125: 0 | D125: 0 | F125: =IF(B127<0,0,B127) -> 0 | H125: =IF(ISBLANK(D125),"",IF(B125-F127<Parameter!L55,Parameter!L55,B125-F127)) -> CHF 8.00 | J125: =IF(ISBLANK(D125),"",ROUND(J127/5,2)*5) -> 0
J126: =IF(D125/30*100%>$H$32,"Hinweis: Das maximal unterstützte Pensum liegt bei "&($H$32*100)&"%. Die Ferienbetreuung wird an maximal "&($H$32*30)&" Tagen pro Jahr unterstützt.","") -> 
B127: =IF(ISBLANK(D125),"",IF(OR(F127>=B125,F127>B125-H125),B125-H125,F127)) -> CHF -8.00 | F127: =IF(ISBLANK(D125),"",VLOOKUP($D$45,Parameter!$A$35:$M$47,12,1)) -> CHF 38.00 | J127: =IF(D125/30*100%<=$H$32,F125*D125,$H$32*30*F125) -> 0.00
J128: =IF(J125="",0,J125) -> 0
B129: =B125*D125 -> 0 | H129: =Parameter!L55*D125 -> 0 | J129: =B129-H129-J128 -> 0
A132: Spielgruppen
B134: Vollkostentarif pro Modul | D134: Anzahl Halbtage pro Woche | F134: Betreuungsgutschein pro Modul | H134: Kostenbeteiligung Eltern pro Modul | J134: Betreuungsgutscheine pro Quartal
B136: 0 | D136: 0 | F136: =IF(F138="","",F138) ->  | H136: =IF(ISBLANK(D136),"",IF(B136-(F142*B140)<Parameter!M55,Parameter!M55,B136-(F142*B140))) ->  | J136: =IF(ISBLANK(D136),"",ROUND(J138/5,2)*5) -> 
F138: =IF(B142<0,0,B142) ->  | J138: =IF(ISBLANK(D140),"",(F136*D136*D140/4)) -> 
B139: Dauer Spielgruppe in Stunden pro Modul | D139: Anzahl Wochen pro Jahr
B142: =IF(OR(ISBLANK(B140),ISBLANK(B136)),"",IF(OR(F142>=(B136/B140),F142>(B136-H136)/B140),B136-H136,F142*B140)) ->  | F142: =IF(ISBLANK(B140),"",VLOOKUP($D$45,Parameter!$A$35:$M$47,13,1)) ->  | J142: =IF(J136="",0,J136) -> 
B145: =B136*D136*D140 -> 0 | H145: =Parameter!M55*D140*D136 -> 0 | J145: =B145-H145-J144 -> 0
A147: Zahlungsdaten
A149: erstmalige Auszahlung | D149: =IF(F19>TODAY(),F19,TODAY()+30) -> 2020-09-05 | F149: Kontoinhaber
A151: massgebendes Einkommen | D151: =D45 -> 0 | F151: IBAN: CH
A153: Betreuungsgutschein pro Monat: | B153: Kindertagesstätten | D153: =J67+J73 -> 0
B155: Tagesfamilien | D155: =J83+J89 -> 0 | F155: =IF(OR(D155="",D155=0),"","Hinweis: Dies entspricht dem maximalen Anspruch, die Stunden werden nachträglich effektiv abgerechnet.") -> 
B157: Tagesstrukturen | D157: =J100+J106+J112+J118 -> 0
A159: Anrechenbarer Anteil Arbeitgeber | D159: =IF(D162<0,D162,D163) -> 0 | F159: =IF(OR(D159="",D159=0),"","Hinweis: Der Arbeitgeberbeitrag übersteigt die Differenz zwischen den Vollkosten und der Summe der Eigenkosten und der Betreuungsgutscheine. Dieser Anteil wird von den Betreuungsgutscheinen abgezogen.") -> 
D161: =(J68+J74+J84+J90+J101+J107+J113+J119)-D52 -> 0
D162: =IF(ISBLANK(D161),"",ROUND(D161/5,2)*5) -> 0
D163: =IF(D162>0,0,D162-D52) -> 0
A165: Auszahlung pro Monat (Kita + Tagesfamilien + Tagesstrukturen) | D165: =IF(D153+D155+D157+D159<=0,"0",D153+D155+D157+D159) -> 0
D166: =D155+D157+#REF!+D159+#REF! -> 
A168: Ferienbetreuung pro Jahr (direkte Verrechnung mit Kosten) | D168: =J128 -> 0
A170: Auszahlung pro Quartal (Spielgruppen) | D170: =J142 -> 
A172: Administration
A174: Bestätigung /Ablehnung geschickt | D174: Ja | F174: Datum:
A176: Zahlung eingerichtet | D176: Ja | F176: Datum:

Sheet Parameter
A1: Parameter für Berechnung Betreuungsgutscheine
A4: Höhe Betreuungsgutscheine in Stunden
A5: massgebendes Einkommen | D5: Kindertagesstätte / Tagesfamilien | F5: Schulergänzende Betreuung / Ferienbetreuung | G5: Spielgruppe
A6: von | C6: bis | D6: Kinder unter 18 Monaten | E6: Kinder über 18 Monate
A7: 0 | B7: bis | C7: CHF 45,000 | D7: CHF 10.50 | E7: CHF 9.50 | F7: CHF 9.50 | G7: CHF 7.50
A8: CHF 45,001 | B8: bis | C8: =C7+5000 -> CHF 50,000 | D8: CHF 9.70 | E8: CHF 8.70 | F8: CHF 8.70 | G8: CHF 6.90
A9: =A8+5000 -> CHF 50,001 | B9: bis | C9: =C8+5000 -> CHF 55,000 | D9: CHF 9.00 | E9: CHF 8.00 | F9: CHF 8.00 | G9: CHF 6.30
A10: =A9+5000 -> CHF 55,001 | B10: bis | C10: CHF 60,000 | D10: CHF 8.20 | E10: CHF 7.20 | F10: CHF 7.20 | G10: CHF 5.70
A11: CHF 60,001 | B11: bis | C11: CHF 65,000 | D11: CHF 7.40 | E11: CHF 6.40 | F11: CHF 6.40 | G11: CHF 5.10
A12: CHF 65,001 | B12: bis | C12: CHF 70,000 | D12: CHF 6.60 | E12: CHF 5.60 | F12: CHF 5.60 | G12: CHF 4.50
A13: CHF 70,001 | B13: bis | C13: CHF 75,000 | D13: CHF 5.90 | E13: CHF 4.90 | F13: CHF 4.90 | G13: CHF 3.90
A14: CHF 75,001 | B14: bis | C14: CHF 80,000 | D14: CHF 5.10 | E14: CHF 4.10 | F14: CHF 4.10 | G14: CHF 3.30
A15: CHF 80,001 | B15: bis | C15: CHF 85,000 | D15: CHF 4.30 | E15: CHF 3.30 | F15: CHF 3.30 | G15: CHF 2.70
A16: CHF 85,001 | B16: bis | C16: CHF 90,000 | D16: CHF 3.50 | E16: CHF 2.50 | F16: CHF 2.50 | G16: CHF 2.10
A17: CHF 90,001 | B17: bis | C17: CHF 95,000 | D17: CHF 2.80 | E17: CHF 1.80 | F17: CHF 1.80 | G17: CHF 1.50
A18: CHF 95,001 | B18: bis | C18: CHF 100,000 | D18: CHF 2.00 | E18: CHF 1.00 | F18: CHF 1.00 | G18: CHF 1.00
A19: CHF 100,001 | B19: bis | C19: CHF 999,999,999 | D19: CHF - | E19: CHF - | F19: CHF - | G19: CHF -
A23: maximaler Anspruch an Betreuungsstunden pro Jahr
A24: maximaler Anspruch an Betreuungsstunden | D24: Kindertagesstätte | F24: Tagesfamilien | H24: Schulergänzende Betreuung / Ferienbetreuung | M24: Spielgruppe
D25: Kinder unter 18 Monaten | E25: Kinder über 18 Monate | F25: Kinder unter 18 Monaten | G25: Kinder über 18 Monate | H25: Frühmorgen | I25: Mittagstisch | J25: Nachmittag 1 13.30 bis 15.30 | K25: Nachmittag I1 15.30 bis 18.00 | L25: Ferienbetreuung
A26: maximale Betreuungstunden pro Element | D26: 10 | E26: 10 | F26: 10 | G26: 10 | H26: 0 | I26: 1.5 | J26: 2 | K26: 2.5 | L26: 4 | M26: 8
A27: maximale Betreuungstage pro Jahr | D27: 240 | E27: 240 | F27: 240 | G27: 240 | H27: 190 | I27: 190 | J27: 190 | K27: 190 | L27: 30 | M27: 40
A28: maximale Betreuungsstunden pro Jahr | D28: =D26*D27 -> 2400 | E28: =E26*E27 -> 2400 | F28: 2400 | G28: 2400 | H28: 0 | I28: 285 | J28: 380 | K28: 475 | L28: 120 | M28: 320
A32: Höhe Betreuungsgutscheine pro Betreuungselement
A33: massgebendes Einkommen | D33: Kindertagesstätte pro Tag | F33: Tagesfamilien pro Stunde | H33: Schulergänzende Betreuung / Ferienbetreuung pro Element | M33: Spielgruppe pro Stunde | N33: Spielgruppe pro Modul
A34: von | C34: bis | D34: Kinder unter 18 Monaten | E34: Kinder über 18 Monate | F34: Kinder unter 18 Monaten | G34: Kinder über 18 Monate | H34: Frühmorgen | I34: Mittagstisch | J34: Nachmittag 1 13.30 bis 15.30 | K34: Nachmittag I1 15.30 bis 18.00 | L34: Ferienbetreuung
A35: 0 | B35: bis | C35: CHF 45,000 | D35: =D7*$D$26 -> CHF 105.00 | E35: =E7*$E$26 -> CHF 95.00 | F35: CHF 10.50 | G35: CHF 9.50 | H35: 0 | I35: =F7*$I$26 -> CHF 14.25 | J35: =F7*$J$26 -> CHF 19.00 | K35: =F7*$K$26 -> CHF 23.75 | L35: =F7*$L$26 -> CHF 38.00 | M35: CHF 7.50 | N35: =M35*'Datenblatt pro Kind'!$B$140 -> 0
A36: CHF 45,001 | B36: bis | C36: =C35+5000 -> CHF 50,000 | D36: =D8*$D$26 -> CHF 97.00 | E36: =E8*$E$26 -> CHF 87.00 | F36: CHF 9.70 | G36: CHF 8.70 | H36: 0 | I36: =F8*$I$26 -> CHF 13.05 | J36: =F8*$J$26 -> CHF 17.40 | K36: =F8*$K$26 -> CHF 21.75 | L36: =F8*$L$26 -> CHF 34.80 | M36: CHF 6.90 | N36: =M36*'Datenblatt pro Kind'!$B$140 -> 0
A37: =A36+5000 -> CHF 50,001 | B37: bis | C37: =C36+5000 -> CHF 55,000 | D37: CHF 90.00 | E37: CHF 80.00 | F37: CHF 9.00 | G37: CHF 8.00 | H37: 0 | I37: CHF 12.00 | J37: CHF 16.00 | K37: CHF 20.00 | L37: CHF 32.00 | M37: CHF 6.30 | N37: =M37*'Datenblatt pro Kind'!$B$140 -> 0
A38: =A37+5000 -> CHF 55,001 | B38: bis | C38: CHF 60,000 | D38: CHF 82.00 | E38: CHF 72.00 | F38: CHF 8.20 | G38: CHF 7.20 | H38: 0 | I38: CHF 10.80 | J38: CHF 14.40 | K38: CHF 18.00 | L38: CHF 28.80 | M38: CHF 5.70 | N38: =M38*'Datenblatt pro Kind'!$B$140 -> 0
A39: CHF 60,001 | B39: bis | C39: CHF 65,000 | D39: CHF 74.00 | E39: CHF 64.00 | F39: CHF 7.40 | G39: CHF 6.40 | H39: 0 | I39: CHF 9.60 | J39: CHF 12.80 | K39: CHF 16.00 | L39: CHF 25.60 | M39: CHF 5.10 | N39: =M39*'Datenblatt pro Kind'!$B$140 -> 0
A40: CHF 65,001 | B40: bis | C40: CHF 70,000 | D40: CHF 66.00 | E40: CHF 56.00 | F40: CHF 6.60 | G40: CHF 5.60 | H40: 0 | I40: CHF 8.40 | J40: CHF 11.20 | K40: CHF 14.00 | L40: CHF 22.40 | M40: CHF 4.50 | N40: =M40*'Datenblatt pro Kind'!$B$140 -> 0
A41: CHF 70,001 | B41: bis | C41: CHF 75,000 | D41: CHF 59.00 | E41: CHF 49.00 | F41: CHF 5.90 | G41: CHF 4.90 | H41: 0 | I41: CHF 7.35 | J41: CHF 9.80 | K41: CHF 12.25 | L41: CHF 19.60 | M41: CHF 3.90 | N41: =M41*'Datenblatt pro Kind'!$B$140 -> 0
A42: CHF 75,001 | B42: bis | C42: CHF 80,000 | D42: CHF 51.00 | E42: CHF 41.00 | F42: CHF 5.10 | G42: CHF 4.10 | H42: 0 | I42: CHF 6.15 | J42: CHF 8.20 | K42: CHF 10.25 | L42: CHF 16.40 | M42: CHF 3.30 | N42: =M42*'Datenblatt pro Kind'!$B$140 -> 0
A43: CHF 80,001 | B43: bis | C43: CHF 85,000 | D43: CHF 43.00 | E43: CHF 33.00 | F43: CHF 4.30 | G43: CHF 3.30 | H43: 0 | I43: CHF 4.95 | J43: CHF 6.60 | K43: CHF 8.25 | L43: CHF 13.20 | M43: CHF 2.70 | N43: =M43*'Datenblatt pro Kind'!$B$140 -> 0
A44: CHF 85,001 | B44: bis | C44: CHF 90,000 | D44: CHF 35.00 | E44: CHF 25.00 | F44: CHF 3.50 | G44: CHF 2.50 | H44: 0 | I44: CHF 3.75 | J44: CHF 5.00 | K44: =F16*$K$26 -> CHF 6.25 | L44: CHF 10.00 | M44: CHF 2.10 | N44: =M44*'Datenblatt pro Kind'!$B$140 -> 0
A45: CHF 90,001 | B45: bis | C45: CHF 95,000 | D45: CHF 28.00 | E45: CHF 18.00 | F45: CHF 2.80 | G45: CHF 1.80 | H45: 0 | I45: CHF 2.70 | J45: CHF 3.60 | K45: CHF 4.50 | L45: CHF 7.20 | M45: CHF 1.50 | N45: =M45*'Datenblatt pro Kind'!$B$140 -> 0
A46: CHF 95,001 | B46: bis | C46: CHF 100,000 | D46: CHF 20.00 | E46: CHF 10.00 | F46: CHF 2.00 | G46: CHF 1.00 | H46: 0 | I46: CHF 1.50 | J46: CHF 2.00 | K46: CHF 2.50 | L46: CHF 4.00 | M46: CHF 1.00 | N46: =M46*'Datenblatt pro Kind'!$B$140 -> 0
A47: CHF 100,001 | B47: bis | C47: CHF 999,999,999 | D47: 0 | E47: 0 | F47: 0 | G47: 0 | H47: 0 | I47: 0 | J47: 0 | K47: 0 | L47: 0 | M47: CHF - | N47: 0
A51: Minimale Kostenbeteiligung pro Stunde
A52: Minimale Kostenbeteiligung | D52: Kindertagesstätte | F52: Tagesfamilien | H52: Schulergänzende Betreuung / Ferienbetreuung | M52: Spielgruppe
D53: Kinder unter 18 Monaten | E53: Kinder über 18 Monate | F53: Kinder unter 18 Monaten | G53: Kinder über 18 Monate | H53: Frühmorgen | I53: Mittagstisch | J53: Nachmittag 1 13.30 bis 15.30 | K53: Nachmittag I1 15.30 bis 18.00 | L53: Ferienbetreuung
A54: Minimale Kostenbeteiligung pro Stunde | D54: CHF 2.00 | E54: CHF 2.00 | F54: CHF 2.00 | G54: CHF 2.00 | H54: CHF 2.00 | I54: CHF 2.00 | J54: CHF 2.00 | K54: CHF 2.00 | L54: CHF 2.00 | M54: CHF 1.00
A55: Minimale Kostenbeteiligung pro Element | D55: =D54*D26 -> CHF 20.00 | E55: =E54*E26 -> CHF 20.00 | H55: 0 | I55: CHF 3.00 | J55: CHF 4.00 | K55: CHF 5.00 | L55: CHF 8.00 | M55: =M54*'Datenblatt pro Kind'!B140 -> 0
